bitfinex-derivatives/quotes_ETHF0:USTF0_20250217
["timestamp","ask_amount","ask_price","bid_price","bid_amount"]
[1739807255965,3.2078,2770.9,2769.9,3.968]
[1739807256160,3.2078,2770.6,2769.8,4.1563001]
[1739807256373,3.2078,2770.3,2769.8,4.1563001]
[1739807256667,3.2078,2770.6,2769.9,0.00541087]
[1739807257063,3.2078,2770.0,2769.9,0.00541087]
[1739807257961,3.2078,2770.0,2769.3,0.72209]
[1739807258163,3.2078,2769.7,2769.2,2.0241]
[1739807258566,3.2078,2769.4,2768.6,1.9235]
[1739807258758,3.2078,2769.4,2768.7,7.1638]
[1739807258966,3.2078,2769.4,2769.0,0.72216]
[1739807259171,3.2078,2769.4,2768.7,7.1638]
[1739807259172,0.00541087,2769.3,2768.8,0.00541087]
[1739807259568,0.00541087,2769.3,2769.2,0.72212]
[1739807259772,3.2078,2769.9,2769.2,7.1548]
[1739807260071,3.2078,2769.6,2769.1,4.047448]
[1739807260273,3.2078,2769.9,2769.1,4.047448]
[1739807260769,3.2078,2769.9,2768.9,3.2078]
[1739807261073,3.2078,2769.9,2769.2,3.2078]
[1739807261270,6.97118394,2770.8,2769.3,3.944]
[1739807261271,3.2078,2770.3,2769.3,3.944]
[1739807261465,3.2078,2770.3,2769.5,3.2078]
[1739807261666,3.2078,2770.7,2770.1,3.2078]
[1739807261871,3.2078,2770.7,2770.2,3.963]
[1739807262276,3.92964,2770.3,2770.2,0.00541087]
[1739807262474,3.56940001,2770.3,2769.6,4.15306635]
[1739807262772,3.2078,2769.7,2768.6,1.9235]
[1739807262966,3.2078,2769.3,2768.6,1.9235]
[1739807263478,3.2078,2768.7,2767.4,3.983]
[1739807263771,3.2078,2768.7,2767.7,3.2078]
[1739807263966,3.2078,2768.8,2767.8,3.98541087]
[1739807264267,3.2078,2769.1,2767.9,3.986]
[1739807264671,3.2078,2769.1,2767.9,7.1938]
[1739807264865,0.00541087,2769.2,2767.9,7.1938]
[1739807264866,0.00541087,2769.2,2768.5,3.2078]
[1739807265061,3.60748,2771.7,2769.1,3.2078]
[1739807265062,3.2078,2770.2,2769.1,3.2078]
[1739807265266,5.0668,2770.5,2769.6,0.72202]
[1739807265468,3.2078,2770.2,2769.9,0.72194]
[1739807265771,0.72167,2771.0,2769.8,3.2078]
[1739807265772,3.2078,2770.8,2769.8,3.2078]
[1739807266071,3.2078,2770.8,2770.2,0.72185]
[1739807266276,3.2078,2770.8,2770.0,0.00541087]
[1739807266470,3.2078,2771.2,2770.0,0.00541087]
[1739807266679,3.2078,2771.2,2770.1,3.2078]
[1739807266872,3.2078,2771.2,2770.6,3.2078]
[1739807267071,4.27539266,2771.9,2770.2,6.0217]
[1739807267072,3.2078,2770.8,2770.2,6.0217]
[1739807267366,3.2078,2770.8,2770.2,2.0317]
[1739807267574,3.2078,2770.5,2770.2,2.0317]
[1739807267873,3.2078,2770.5,2770.0,0.00541087]
[1739807268272,3.2078,2770.8,2770.0,0.00541087]
[1739807268577,3.982,2771.2,2770.0,0.00541087]
[1739807268578,3.2078,2770.2,2770.0,0.00541087]
[1739807269576,3.2078,2770.6,2770.0,7.18321087]
[1739807269776,3.2078,2770.6,2770.1,3.97]
[1739807270074,3.2078,2770.6,2770.2,0.72185]
[1739807270782,3.2078,2770.6,2770.1,3.96]
[1739807270973,3.2078,2771.2,2770.3,0.72182]
[1739807271274,3.2078,2770.9,2770.3,0.72182]
[1739807271483,3.2078,2770.9,2770.3,3.2078]
[1739807271775,3.2078,2770.9,2770.2,2.0524]
[1739807272178,3.2078,2770.6,2770.2,2.0524]
[1739807272378,3.2078,2770.9,2770.3,0.72183]
[1739807272569,3.2078,2770.9,2770.2,2.0524]
[1739807272570,3.2078,2770.5,2770.2,3.4963]
[1739807272772,0.72184,2770.3,2770.0,0.00541087]
[1739807272971,3.2078,2770.1,2768.7,2.0524]
[1739807273174,3.2078,2769.4,2768.7,2.0524]
[1739807273471,3.2078,2769.1,2768.7,2.0524]
[1739807273671,3.2078,2768.9,2767.9,5.238]
[1739807273973,3.2078,2768.4,2767.9,2.0302]
[1739807274179,3.2078,2768.3,2768.1,0.00541087]
[1739807274374,3.27291986,2768.3,2768.1,0.00541087]
[1739807274574,6.48071986,2768.3,2767.2,7.82898291]
[1739807274776,6.48071986,2768.3,2766.4,3.2078]
[1739807274777,3.2078,2767.3,2766.4,3.2078]
[1739807274974,3.2078,2766.9,2766.2,0.72289]
[1739807275180,3.2078,2766.9,2766.3,2.29686998]
[1739807275484,3.27291986,2767.2,2766.2,4.78137465]
[1739807275776,3.27291986,2766.8,2766.4,1.4459]
[1739807275978,3.27291986,2766.8,2766.3,11.6337648]
[1739807276179,0.00542094,2766.9,2766.3,0.00542094]
[1739807276180,6.48071986,2766.7,2766.3,0.00542094]
[1739807276387,3.2078,2766.6,2765.9,4.49411272]
[1739807276573,3.2078,2766.6,2766.4,2.64413811]
[1739807277071,3.2078,2766.6,2766.5,1.22763555]
[1739807277476,3.2078,2766.6,2766.5,7.22763555]
[1739807277777,3.2078,2766.6,2766.5,1.22763555]
[1739807278171,3.2078,2766.6,2766.5,3.77357315]
[1739807278572,1.62659094,2766.6,2766.5,3.77357315]
[1739807278982,3.21322094,2766.9,2766.5,13.74457315]
[1739807279178,3.2078,2766.6,2766.5,3.77357315]
[1739807279578,3.2078,2766.6,2766.5,0.47216752]
[1739807279774,3.2078,2766.6,2765.6,3.36470708]
[1739807279775,0.72351,2763.9,2763.8,0.24331964]
[1739807279985,0.72353,2763.8,2763.7,9.42500799]
[1739807280185,7.82898291,2763.9,2763.0,0.17972349]
[1739807280490,23.63714,2765.0,2761.2,16.48486919]
[1739807280491,0.72398,2762.1,2762.0,7.86562596]
[1739807280785,3.93178,2762.1,2762.0,7.86462596]
[1739807280977,3.2078,2762.1,2761.8,0.00542094]
[1739807281176,3.2078,2762.1,2761.2,16.47886603]
[1739807281385,0.72419,2761.3,2761.2,7.86124603]
[1739807281582,7.73782435,2761.3,2761.2,2.24026603]
[1739807281886,0.72424,2761.1,2761.0,45.53698035]
[1739807282090,0.72424,2761.1,2761.0,42.2387948]
[1739807282275,0.72424,2761.1,2761.0,39.07305834]
[1739807282475,0.72427,2761.0,2760.9,1.60444565]
[1739807282676,0.72427,2761.0,2760.1,33.2154655]
[1739807282677,9.2078,2761.1,2760.1,33.2154655]
[1739807282982,7.01363435,2760.2,2760.1,5.84295233]
[1739807283184,3.2078,2760.4,2760.1,5.84295233]
[1739807283383,9.2078,2760.4,2759.2,3.2078]
[1739807283582,3.2078,2760.3,2759.1,35.62198601]
[1739807283781,0.00543154,2760.1,2759.5,3.21142524]
[1739807284083,0.00543154,2760.1,2759.7,10.856]
[1739807284279,0.00543154,2760.1,2760.0,10.856]
[1739807284476,0.72463,2759.6,2759.5,5.24e-06]
[1739807284687,0.00543154,2760.1,2759.5,5.24e-06]
[1739807284887,0.3624,2760.0,2759.5,5.24e-06]
[1739807285183,0.3624,2760.0,2759.5,10.85600524]
[1739807285384,0.00543154,2760.1,2759.8,10.856]
[1739807285585,0.00543154,2760.1,2759.7,10.856]
[1739807285887,7.01363435,2760.6,2760.0,10.856]
[1739807286185,3.2078,2760.8,2760.1,10.856]
[1739807286383,3.2078,2761.8,2760.8,10.856]
[1739807286589,5.228,2762.7,2761.6,3.2078]
[1739807286787,0.0045,2763.0,2762.2,3.2078]
[1739807287080,0.72374,2763.1,2762.5,3.2078]
[1739807287281,0.3624,2763.2,2761.7,0.00543154]
[1739807287282,0.00543154,2762.9,2762.8,3.2078]
[1739807287977,6.00543154,2762.9,2762.8,2.28913635]
[1739807288290,0.00543154,2762.9,2762.8,2.28913635]
[1739807288583,5.214,2764.0,2762.8,13.14513635]
[1739807288773,7.01363435,2764.2,2761.7,1.90963154]
[1739807288774,7.01363435,2764.2,2763.6,3.2078]
[1739807288979,5.5654,2764.4,2763.6,14.0638]
[1739807289180,7.01363435,2764.1,2763.2,3.2078]
[1739807289386,2.30033435,2764.1,2763.2,3.2078]
[1739807289785,2.30033435,2764.1,2761.7,1.9042]
[1739807289786,7.73724435,2763.5,2763.4,1.54e-06]
[1739807290085,0.54299308,2762.9,2761.2,10.856]
[1739807290284,3.2078,2761.7,2760.7,10.856]
[1739807290488,7.01363435,2761.5,2760.7,10.856]
[1739807290885,7.01363435,2761.5,2759.5,2.0546]
[1739807290886,0.72445,2760.3,2759.6,3.2078]
[1739807291084,3.2078,2760.1,2759.5,10.856]
[1739807291288,3.2078,2760.1,2758.6,3.2078]
[1739807291588,3.2078,2759.2,2759.0,10.856]
[1739807291788,3.2078,2759.2,2758.3,3.2078]
[1739807291989,3.2078,2759.2,2756.9,3.2078]
[1739807291990,3.2078,2758.4,2756.9,3.2078]
[1739807292182,40.8,2758.7,2758.0,10.856]
[1739807292397,40.8,2758.7,2757.5,3.2078]
[1739807292398,12.23463435,2758.8,2757.9,10.856]
[1739807292588,3.2078,2758.9,2758.6,10.856]
[1739807292787,3.2078,2759.6,2758.8,10.856]
[1739807292990,3.2078,2759.6,2758.9,10.856]
[1739807293283,3.2078,2759.3,2759.2,0.03324831]
[1739807293683,0.00543154,2759.5,2759.2,0.03324831]
[1739807293684,0.00543154,2759.5,2759.2,11.26964957]
[1739807293985,0.00543154,2759.5,2759.4,10.856]
[1739807294189,0.00543154,2759.5,2759.4,0.04963441]
[1739807294389,11.18843154,2759.5,2758.0,3.2078]
[1739807294592,3.2078,2758.9,2758.1,10.856]
[1739807294790,3.2078,2758.9,2758.2,10.856]
[1739807294997,3.2078,2759.3,2758.3,10.856]
[1739807295193,40.8,2759.3,2758.3,3.2078]
[1739807295490,5.09858971,2758.9,2758.3,3.2078]
[1739807295695,5.09858971,2758.9,2758.4,3.2078]
[1739807295890,5.09858971,2758.9,2758.8,10.856]
[1739807296303,5.09858971,2758.9,2758.8,14.0638]
[1739807296591,8.30638971,2758.9,2757.8,7.35813526]
[1739807296784,3.2078,2758.2,2757.8,4.15033526]
[1739807296989,3.93288,2757.9,2757.8,4.14490372]
[1739807297189,3.2078,2757.9,2756.5,3.2078]
[1739807297405,3.2078,2757.3,2756.5,3.2078]
[1739807297694,3.2078,2757.1,2756.6,10.03918]
[1739807297995,3.2078,2757.1,2755.8,3.2078]
[1739807298195,3.2078,2758.4,2757.0,10.03374846]
[1739807298495,3.2078,2758.4,2758.1,10.03374846]
[1739807298698,0.3632,2758.8,2758.3,10.03374846]
[1739807298699,3.2078,2758.8,2758.3,10.03374846]
[1739807298998,5.2,2759.4,2758.7,10.03374846]
[1739807299196,3.2078,2758.8,2758.4,10.03374846]
[1739807299392,3.2078,2758.5,2758.1,10.03374846]
[1739807299697,3.2078,2758.2,2757.3,3.2078]
[1739807299904,2.52796414,2759.1,2758.1,0.72503]
[1739807300107,3.2078,2758.7,2758.1,10.03374846]
[1739807300308,2.52796414,2759.1,2758.5,10.03374846]
[1739807300502,3.2078,2758.8,2757.9,3.2078]
[1739807300808,2.52796414,2759.1,2757.9,3.2078]
[1739807300809,0.00544178,2758.7,2758.3,0.0332474]
[1739807301105,0.00544178,2758.7,2758.6,0.7249]
[1739807301305,2.52796414,2759.1,2759.0,0.72479]
[1739807301503,3.79194622,2759.3,2758.9,8.4088]
[1739807301704,7.01363435,2761.4,2758.9,8.4088]
[1739807301705,3.2078,2760.9,2759.2,3.2078]
[1739807301898,3.2078,2760.9,2760.0,0.04963441]
[1739807302099,3.2078,2760.3,2759.0,9.1708972]
[1739807302305,3.2078,2759.9,2759.0,9.1708972]
[1739807302511,0.00544178,2759.9,2759.8,0.72458]
[1739807302708,3.2078,2760.6,2759.7,5.186]
[1739807302904,3.2078,2760.6,2759.7,8.3938]
[1739807303206,2.51366619,2761.4,2759.7,8.3938]
[1739807303207,3.2078,2761.0,2759.7,5.186]
[1739807303402,3.2078,2761.0,2759.9,3.2078]
[1739807303603,3.2078,2761.3,2759.9,3.2078]
[1739807303807,3.2078,2761.3,2760.2,3.2078]
[1739807304007,0.00544178,2760.7,2760.6,0.72435]
[1739807304211,2.51366619,2761.4,2760.6,5.177]
[1739807304409,2.51366619,2761.4,2761.3,0.72419]
[1739807304603,6.25953622,2761.6,2761.0,3.2078]
[1739807304803,6.37323714,2762.2,2761.0,9.2078]
[1739807304804,3.2078,2762.2,2761.0,9.2078]
[1739807305021,3.2078,2762.2,2761.5,3.11306305]
[1739807305206,3.2078,2762.2,2761.6,5.153]
[1739807305407,3.2078,2762.2,2762.1,0.72398]
[1739807305607,0.00543163,2762.1,2761.7,20.084]
[1739807305809,3.2078,2762.5,2762.2,0.72394]
[1739807306010,3.2078,2762.5,2761.7,20.084]
[1739807306513,3.2078,2761.9,2761.6,0.00543163]
[1739807306811,7.01363435,2762.7,2761.6,0.00543163]
[1739807306812,3.2078,2762.3,2761.6,3.2078]
[1739807307004,3.2078,2762.6,2761.6,3.2078]
[1739807307208,3.2078,2763.5,2763.0,0.72372]
[1739807307407,3.2078,2763.2,2762.7,5.173]
[1739807307615,3.2078,2762.9,2762.0,5.169]
[1739807307810,3.2078,2762.2,2761.2,8.3958]
[1739807308016,3.2078,2761.8,2761.2,5.188]
[1739807308215,3.2078,2762.1,2761.4,0.00543163]
[1739807308614,3.2078,2762.7,2761.5,5.19]
[1739807308817,3.2078,2763.0,2761.7,3.2078]
[1739807309020,3.2078,2763.0,2762.3,11.41912782]
[1739807309214,3.2078,2763.9,2762.4,8.3928]
[1739807309520,3.2078,2763.9,2763.1,3.96273717]
[1739807309715,3.2078,2764.7,2763.5,3.2078]
[1739807309912,3.2078,2765.0,2764.3,0.72338]
[1739807310120,0.00543163,2764.4,2764.3,0.72338]
[1739807310313,3.2078,2765.0,2764.3,6.0]
[1739807310513,3.2078,2765.0,2763.9,5.199]
[1739807310718,3.2078,2765.4,2764.0,3.2078]
[1739807310916,3.2078,2765.4,2764.8,0.72325]
[1739807311113,3.2078,2765.4,2764.3,3.2078]
[1739807311315,3.2078,2765.4,2764.7,3.2078]
[1739807311620,8.93873435,2766.4,2764.7,3.2078]
[1739807311621,3.2078,2765.7,2764.7,8.3928]
[1739807311813,3.2078,2765.9,2765.0,3.2078]
[1739807312114,0.00543163,2765.3,2765.2,0.72317]
[1739807312312,3.2078,2765.9,2765.2,6.0]
[1739807312512,3.2078,2765.9,2765.3,3.83213652]
[1739807312715,3.2078,2766.2,2765.4,5.166]
[1739807312916,3.2078,2765.9,2765.4,5.166]
[1739807313115,3.2078,2765.9,2765.2,0.00543163]
[1739807313116,3.2078,2765.5,2764.1,3.2078]
[1739807313413,3.2078,2765.2,2764.4,0.72336]
[1739807313616,3.2078,2765.2,2764.5,3.96819006]
[1739807313813,3.2078,2765.8,2764.6,20.063]
[1739807314013,3.2078,2766.1,2765.3,3.2078]
[1739807314219,3.2078,2766.1,2765.7,0.72302]
[1739807314414,3.2078,2766.1,2765.4,5.163]
[1739807314415,0.00543163,2766.0,2765.4,16.7734427]
[1739807314720,3.2078,2765.7,2765.4,0.00543163]
[1739807316013,3.2078,2765.7,2765.4,6.00543163]
[1739807316216,3.2078,2765.7,2765.4,0.00543163]
[1739807316519,0.00543163,2766.0,2765.5,11.66524168]
[1739807316911,3.2078,2766.5,2765.5,13.79791616]
[1739807317220,3.2078,2767.3,2766.3,3.2078]
[1739807317523,3.2078,2767.3,2766.6,3.2078]
[1739807317717,3.2078,2767.8,2766.9,3.2078]
[1739807317917,5.09858971,2768.5,2766.4,16.80650285]
[1739807317918,3.2078,2768.1,2767.1,3.2078]
[1739807318122,3.2078,2768.1,2767.2,5.159]
[1739807318416,3.2078,2767.3,2767.1,0.00542162]
[1739807319020,3.2078,2767.3,2767.1,0.72809162]
[1739807319323,3.2078,2767.3,2767.1,0.00542162]
[1739807320822,3.21136196,2767.6,2766.2,14.23871969]
[1739807321011,3.21136196,2767.6,2766.5,3.2078]
[1739807321317,0.00356196,2767.6,2767.5,0.72257]
[1739807321516,0.00356196,2767.6,2767.5,5.88257]
[1739807321724,0.00356196,2767.6,2767.5,5.16]
[1739807322020,3.21136196,2767.6,2766.8,0.72273]
[1739807322210,0.00356196,2767.6,2767.3,0.00542162]
[1739807322414,3.21136196,2767.6,2767.3,0.00542162]
[1739807322713,0.72257,2767.5,2767.3,0.00542162]
[1739807322912,0.72258,2767.5,2767.3,0.00542162]
[1739807323115,3.21136196,2767.6,2766.6,0.08293103]
[1739807323321,3.21136196,2767.6,2766.8,0.72275]
[1739807323322,3.2078,2766.9,2766.8,0.72275]
[1739807323521,3.2078,2766.9,2766.6,0.08293103]
[1739807324017,3.2078,2766.9,2766.6,6.08293103]
[1739807324217,3.21136196,2767.6,2766.7,4.13460999]
[1739807324413,0.00356196,2767.6,2766.7,4.13460999]
[1739807324613,0.00356196,2767.6,2766.9,7.34240999]
[1739807324820,0.00356196,2767.6,2767.1,7.01363435]
[1739807325119,3.2078,2768.5,2767.5,3.2078]
[1739807325325,3.2078,2768.5,2767.5,23.24332861]
[1739807325516,3.2078,2768.5,2767.6,10.87759435]
[1739807325824,3.2078,2768.5,2767.7,5.16]
[1739807326118,3.2078,2768.1,2767.5,20.044]
[1739807326327,2.0771,2769.3,2767.8,0.00542162]
[1739807326328,3.2078,2768.0,2767.8,0.00542162]
[1739807327711,0.72246,2767.9,2767.8,0.00542162]
[1739807327914,3.2078,2768.0,2767.8,0.00542162]
[1739807328321,3.2078,2768.0,2767.8,11.11842162]
[1739807328624,3.21322162,2768.4,2767.9,3.78510126]
[1739807328811,3.2078,2768.1,2767.9,3.78510126]
[1739807329016,3.20237838,2767.7,2765.4,3.2078]
[1739807329221,3.2078,2766.0,2765.0,3.2078]
[1739807329425,3.2078,2765.8,2765.0,3.2078]
[1739807329717,5.6034,2767.6,2765.3,3.2078]
[1739807329718,3.2078,2766.5,2765.3,3.2078]
[1739807329918,3.2078,2766.7,2765.6,3.2078]
[1739807330225,3.2078,2766.5,2765.4,5.179]
[1739807330429,0.00542162,2766.4,2765.9,0.00542162]
[1739807330719,0.00542162,2766.4,2766.3,0.72287]
[1739807331125,0.00542162,2766.4,2766.3,6.0]
[1739807331427,0.00542162,2766.4,2766.3,6.72288]
[1739807331825,3.2078,2766.7,2766.2,5.158]
[1739807332031,3.2078,2767.0,2766.1,5.138]
[1739807332231,3.2078,2766.9,2766.1,5.138]
[1739807332522,3.2078,2766.3,2766.0,7.66304239]
[1739807332925,3.2078,2766.3,2765.9,7.66846401]
[1739807333117,3.2078,2766.3,2765.9,0.00542162]
[1739807333317,0.00542162,2766.4,2765.9,0.00542162]
[1739807333530,3.2078,2766.1,2765.9,0.00542162]
[1739807335025,3.2078,2766.0,2765.9,5.10442162]
[1739807335324,3.2078,2766.0,2765.9,5.82740162]
[1739807335527,3.2078,2766.0,2765.9,5.10442162]
[1739807335720,3.2078,2766.0,2765.9,5.82740162]
[1739807335920,3.2078,2766.0,2765.9,11.82740162]
[1739807336426,0.00542162,2766.4,2766.3,0.72288]
[1739807336833,3.2078,2766.5,2766.4,0.72285]
[1739807337026,3.2078,2766.9,2766.4,6.0]
[1739807337330,3.2078,2766.9,2766.3,11.56060207]
[1739807337523,3.2078,2767.4,2766.4,11.70305185]
[1739807337724,3.2078,2767.5,2766.5,3.2078]
[1739807338030,3.2078,2766.8,2766.6,25.099]
[1739807338230,3.2078,2766.9,2766.4,4.02846496]
[1739807338435,3.2078,2766.5,2766.4,4.02846496]
[1739807338824,3.2078,2766.5,2765.9,0.00542162]
[1739807339440,3.2078,2766.4,2765.9,0.00542162]
[1739807339934,3.2078,2766.0,2765.9,0.00542162]
[1739807340135,3.2078,2766.0,2763.0,1.48827865]
[1739807340136,3.2078,2765.8,2763.2,10.22143435]
[1739807340334,3.2078,2764.7,2763.1,5.069]
[1739807340536,3.2078,2764.8,2763.8,0.72351]
[1739807340727,3.2078,2764.8,2763.6,3.2078]
[1739807341031,5.061,2765.5,2764.0,0.72347]
[1739807341032,3.2078,2764.9,2764.0,0.72347]
[1739807341233,3.2078,2764.6,2763.9,0.00542162]
[1739807341533,0.00542162,2764.5,2763.9,0.72893162]
[1739807341724,0.00542162,2764.5,2764.4,0.72338]
[1739807341929,0.00542162,2764.5,2764.1,20.039]
[1739807342333,0.00542162,2764.5,2763.9,5.04942162]
[1739807342334,3.2078,2764.2,2763.9,0.00542162]
[1739807342635,0.00542162,2764.5,2763.9,0.00542162]
[1739807342636,3.21322162,2764.5,2764.0,0.72347]
[1739807342835,3.21322162,2764.5,2764.0,0.72348]
[1739807343037,3.21322162,2764.5,2764.1,11.51020681]
[1739807343234,3.2078,2765.1,2764.3,3.2078]
[1739807343435,3.2078,2766.2,2764.9,3.2078]
[1739807343627,3.2078,2766.8,2765.5,3.2078]
[1739807343829,3.2078,2766.8,2765.9,3.2078]
[1739807344037,3.2078,2767.1,2765.9,3.2078]
[1739807344234,3.2078,2767.1,2766.0,5.032]
[1739807344435,3.21322162,2766.8,2766.2,0.72289]
[1739807344738,3.21322162,2766.8,2766.2,0.72830162]
[1739807345036,3.21322162,2766.8,2766.2,0.00542162]
[1739807345531,3.2078,2766.6,2766.3,0.72288]
[1739807345733,3.2078,2766.6,2766.0,5.006]
[1739807345934,3.2078,2766.7,2766.0,5.006]
[1739807346141,3.2078,2766.1,2766.0,8.62640851]
[1739807346327,3.2078,2766.1,2766.0,3.62040851]
[1739807346532,3.2078,2766.5,2766.0,6.0]
[1739807346729,3.2078,2766.5,2766.4,0.72285]
[1739807347130,3.2078,2766.5,2766.4,6.72285]
[1739807347337,3.2078,2766.5,2765.8,5.00042162]
[1739807347537,3.2078,2766.5,2766.4,0.72285]
[1739807347744,0.00542162,2766.8,2766.7,0.72277]
[1739807348041,0.00542162,2766.8,2766.7,6.72277]
[1739807348237,0.00542162,2766.8,2766.5,4.99]
[1739807348439,3.2078,2766.6,2766.4,7.38936949]
[1739807348648,3.2078,2766.6,2766.4,0.00542162]
[1739807348838,3.2078,2766.6,2766.5,0.72283]
[1739807349033,3.2078,2766.6,2766.4,0.00542162]
[1739807349238,3.2078,2766.2,2764.1,5.4226]
[1739807349439,3.2078,2764.9,2763.6,20.039]
[1739807349639,3.2078,2764.6,2763.6,20.039]
[1739807350043,3.2078,2765.0,2763.6,20.039]
[1739807350237,3.2078,2764.7,2763.8,0.72351]
[1739807350544,3.2078,2764.1,2764.0,0.00542162]
[1739807350740,3.2078,2764.5,2764.0,0.00542162]
[1739807350946,0.00542162,2764.6,2764.1,7.66887917]
[1739807351142,0.00542162,2764.6,2764.5,0.72335]
[1739807351534,0.00542162,2764.6,2764.5,18.33077588]
[1739807351735,1.62e-06,2764.6,2764.5,18.33077588]
[1739807351940,3.2078,2765.2,2765.1,0.72319]
[1739807352243,3.2078,2766.0,2765.1,25.073]
[1739807352443,3.2078,2765.5,2765.1,36.48150718]
[1739807352637,3.2078,2765.2,2765.1,23.91276629]
[1739807352842,3.2078,2765.2,2765.1,20.04]
[1739807353746,3.2078,2765.2,2765.1,24.26319]
[1739807354437,3.2078,2765.2,2764.9,0.00542162]
[1739807355143,3.2078,2765.2,2765.0,0.72321]
[1739807355343,3.2078,2765.2,2765.1,0.72319]
[1739807355544,3.2078,2765.2,2765.0,4.985]
[1739807355743,3.2078,2765.2,2765.1,0.72319]
[1739807355938,0.00542162,2765.4,2765.3,0.72314]
[1739807356340,3.2078,2765.8,2765.3,17.63345201]
[1739807356543,5.15773655,2765.9,2765.8,0.72301]
[1739807357246,5.15773655,2765.9,2765.8,6.72301]
[1739807357443,5.15773655,2765.9,2765.8,14.27122353]
[1739807357642,3.21322162,2766.1,2765.7,4.953]
[1739807357842,3.21322162,2766.1,2766.0,0.72296]
[1739807358350,0.00542162,2766.1,2766.0,6.72296]
[1739807358558,5.15773655,2766.2,2766.1,0.72293]
[1739807359250,5.15773655,2766.2,2766.1,6.72293]
[1739807359446,1.27661533,2766.4,2766.3,0.72288]
[1739807359648,1.27661533,2766.4,2766.3,6.72288]
[1739807359843,1.27661533,2766.4,2766.3,11.7416152]
[1739807360155,4.48441533,2766.4,2766.3,7.57675736]
[1739807360352,3.2078,2766.4,2766.3,0.72288]
[1739807360840,3.2078,2766.4,2765.3,3.2078]
[1739807361040,0.00542162,2766.6,2756.4,26.86784789]
[1739807361041,3.2078,2765.5,2765.0,1.24487256]
[1739807361244,3.2078,2765.2,2765.0,1.24487256]
[1739807361445,3.2078,2765.5,2765.0,1.24487256]
[1739807361650,3.2078,2765.5,2765.3,0.72313]
[1739807362057,3.2078,2765.8,2765.5,0.72307]
[1739807362242,3.2078,2765.8,2765.1,11.38884713]
[1739807362447,3.2078,2765.8,2765.7,0.72304]
[1739807362750,3.2078,2766.1,2765.7,0.72302]
[1739807362950,3.2078,2766.1,2765.8,0.72299]
[1739807363353,3.2078,2766.1,2765.7,0.72301]
[1739807363553,3.2078,2766.1,2765.8,0.723]
[1739807363753,3.2078,2766.1,2765.6,4.919]
[1739807363944,3.2078,2766.1,2765.6,0.72305]
[1739807364151,3.2078,2765.8,2765.5,4.912]
[1739807364348,3.2078,2765.8,2765.7,0.72304]
[1739807364658,2.7078,2765.8,2765.7,0.72304]
[1739807365352,2.7078,2765.8,2765.6,4.85019116]
[1739807365559,2.7078,2765.8,2765.7,0.72304]
[1739807365859,2.7078,2765.8,2765.4,4.893]
[1739807366152,2.7078,2765.8,2765.7,0.72304]
[1739807366358,2.7078,2765.8,2765.2,4.878]
[1739807366560,2.7078,2765.8,2765.7,8.5177742]
[1739807366863,3.19575462,2766.3,2766.2,0.72291]
[1739807367158,3.19575462,2766.3,2766.2,5.59091]
[1739807367361,3.19575462,2766.3,2766.2,11.59091]
[1739807367655,3.19575462,2766.3,2766.2,4.868]
[1739807367846,6.40355462,2766.3,2765.7,20.041]
[1739807368052,3.19575462,2766.3,2766.2,0.72291]
[1739807368251,2.46236462,2766.3,2766.2,5.57591]
[1739807368847,5.67016462,2766.3,2765.3,4.00903868]
[1739807369051,3.2078,2766.0,2765.3,4.00903868]
[1739807369353,3.2078,2766.0,2765.9,0.72298]
[1739807369559,3.2078,2766.0,2765.1,7.01363435]
[1739807369854,3.2078,2766.1,2765.2,3.2078]
[1739807370059,3.2078,2766.4,2766.3,0.72288]
[1739807370262,0.00542162,2766.6,2766.5,0.72283]
[1739807371752,0.00542162,2766.6,2766.5,6.72283]
[1739807372057,3.21322162,2766.6,2766.2,7.59001248]
[1739807372261,3.2078,2766.3,2766.2,7.59001248]
[1739807372452,3.2078,2766.3,2766.2,0.72291]
[1739807373055,3.2078,2766.3,2765.8,11.31644932]
[1739807373364,3.2078,2766.3,2766.2,0.72291]
[1739807374057,0.00542162,2766.6,2766.5,0.72283]
[1739807374450,0.00542162,2766.6,2766.5,23.38423108]
[1739807375158,1.62e-06,2766.6,2766.5,23.38423108]
[1739807375357,1.62e-06,2766.6,2766.5,23.73272122]
[1739807375555,3.2078,2768.1,2766.5,23.00989122]
[1739807375761,46.8884879,2769.2,2767.9,4.63354772]
[1739807375762,3.2078,2769.1,2767.9,4.63354772]
[1739807376054,0.68906567,2768.6,2768.5,5.35584772]
[1739807376258,0.68906567,2768.6,2768.5,11.35584772]
[1739807376453,4.46875092,2768.8,2768.5,8.67016432]
[1739807376663,1.49311865,2768.8,2768.7,0.72225]
[1739807376866,1.49311865,2768.8,2768.7,5.52825]
[1739807377465,4.70091865,2768.8,2768.7,4.806]
[1739807377654,4.70091865,2768.8,2768.5,4.63354772]
[1739807377966,4.70091865,2768.8,2768.4,0.00542162]
[1739807378162,3.2078,2768.5,2768.0,20.037]
[1739807378365,3.2078,2768.3,2768.0,20.037]
[1739807379057,1.9989,2768.8,2768.1,4.63354772]
[1739807379263,1.9989,2768.8,2768.5,0.72229]
[1739807379462,0.00542162,2768.7,2768.5,0.72229]
[1739807379659,0.00542162,2768.7,2768.1,12.17791939]
[1739807380166,0.00542162,2768.7,2768.6,0.72228]
[1739807380366,0.00542162,2768.7,2768.6,5.47028]
[1739807380567,0.00542162,2768.7,2768.6,15.33032485]
[1739807380864,0.00542162,2768.7,2768.6,9.33032485]
[1739807381957,2.0835,2770.4,2768.6,9.33032485]
[1739807381958,3.2078,2769.4,2768.7,1.80564]
[1739807382264,13.5232731,2770.7,2770.2,0.72184]
[1739807382466,11.82837542,2770.7,2770.3,9.38854772]
[1739807382669,8.62057542,2770.7,2770.6,0.72176]
[1739807382962,8.62057542,2770.7,2770.6,4.61629846]
[1739807383164,3.2078,2771.4,2770.6,17.30834505]
[1739807383369,8.89191146,2771.1,2771.0,0.72165]